[Event "EYCC O18-ch 2024"]
[Site "Prague"]
[Date "2024.08.29"]
[Round "7.3"]
[White "Sokolovsky, Yahli"]
[Black "Slagboom, Leandro"]
[Result "1-0"]
[ECO "C13"]
[WhiteElo "2522"]
[BlackElo "2331"]
[Annotator "TA"]
[PlyCount "95"]
[EventDate "2024.08.19"]
[EventType "swiss"]
[EventCountry "CZE"]
[SourceTitle "playchess.com"]
[Source "ChessBase"]
[SourceQuality "1"]
[TimeControl "5400+30"]

{[%evp 14,95,23,10,20,0,7,-1,9,18,21,20,8,-1,0,0,-8,-10,0,0,0,-13,-13,-14,0,0,0,0,0,0,18,13,8,5,13,29,3,2,3,0,0,0,0,0,0,0,0,-15,-16,-45,0,0,0,0,0,0,0,0,12,0,133,140,156,151,164,167,190,194,199,192,197,184,237,187,254,242,261,254,258,235,639,620,822,801]} 1. e4 {[%emt 0:00:05][%cal Be2e4,Be4e5][%mdl 32]} e6 {[%emt 0:00:11]} 2. d4 {[%emt 0:00:07]} d5 {[%emt 0:00:04]} 3. Nc3 {[%emt 0:00:06]} Nf6 {[%emt 0:00:07]} 4. Bg5 {[%emt 0:00:05]} Be7 {[%emt 0:01:17]} 5. e5 {[%emt 0:00:06]} Nfd7 {[%emt 0:00:05]} 6. h4 {[%emt 0:00:04]} Bxg5 {[%emt 0:00:05]} 7. hxg5 {[%emt 0:00:06]} Qxg5 {[%emt 0:00:06]} 8. Nh3 {[%emt 0:00:07]} Qh4 {[%emt 0:00:07]} 9. g3 {[%emt 0:00:12][%mdl 1024] White has compensation.} Qe7 {[%emt 0:00:24]} 10. Qg4 {[%emt 0:00:26]} g6 {[%emt 0:00:48] The position is equal.} 11. Ng5 {[%emt 0:02:10]} h6 {[%emt 0:00:16][%cal Oa7a6] [#]} 12. O-O-O $1 {[%emt 0:04:35][%cal Of1d3]} Nc6 {[%emt 0:00:45]} 13. f4 {[%emt 0:04:17]} Nb6 {[%emt 0:08:09]} 14. Rh4 {[%emt 0:11:42]} Bd7 {[%emt 0:02:50]} 15. Qh3 {[%emt 0:00:08]} Qf8 {[%emt 0:03:59]} 16. Bb5 {[%emt 0:05:05]} Ne7 {[%emt 0:06:19]} 17. g4 {[%emt 0:01:35] Prevents Nf5} O-O-O {[%emt 0:26:29]} 18. Rh1 {[%emt 0:02:24][%cal Rh4h6]} Bxb5 {[%emt 0:04:57]} 19. Nxb5 {[%emt 0:00:02]} a6 {[%emt 0:02:32]} 20. Nc3 {[%emt 0:00:08]} h5 $1 {[%emt 0:02:00]} 21. Qh2 {[%emt 0:05:29]} Nc4 {[%emt 0:02:39][%cal Bb6c4,Bc4a3,Ba3b5,Bb5a7,Ba7c6][%mdl 32] Strongly threatening ...Nc6.} 22. Nd1 {[%emt 0:11:56]} Rh6 {[%emt 0:05:43]} 23. b3 {[%emt 0:11:18]} (23. gxh5 Nf5 24. Rh3 Rxh5 $15 (24... Nxd4 25. b3 $15)) 23... Na3 {[%emt 0:03:21]} 24. Qd2 {[%emt 0:03:57]} (24. gxh5 Nf5 25. Rh3 Rxh5 $15) 24... Nb5 {[%emt 0:05:54]} 25. a4 {[%emt 0:11:59]} (25. gxh5 Nf5 26. R4h3 gxh5 $17 (26... Nfxd4 $2 27. a4 $18) (26... Nbxd4 27. hxg6 Rxg6 28. Kb1 $15)) 25... Na7 {[%emt 0:00:34]} 26. f5 {[%emt 0:03:28]} exf5 {[%emt 0:03:11]} 27. gxh5 {[%emt 0:03:11]} Rxh5 {[%emt 0:01:15]} 28. Rxh5 {[%emt 0:00:05]} gxh5 {[%emt 0:00:05]} 29. Rxh5 {[%emt 0:02:32]} Qg8 {[%emt 0:04:50]} 30. Rh6 {[%emt 0:09:35]} Nac6 {[%emt 0:03:23][%cal Oc6d4]} 31. c3 {[%emt 0:00:10]} Re8 {[%emt 0:04:05]} 32. Nh7 $36 {[%emt 0:05:30][%mdl 2048] Black must now prevent Nf6. White fights for an advantage.} Qg7 {[%emt 0:01:23] ...Rh8 is the strong threat.} 33. Qg5 {[%emt 0:02:48]} Rg8 {[%emt 0:01:54]} 34. Qxg7 {[%emt 0:00:04]} Rxg7 {[%emt 0:00:04]} 35. Nf6 {[%emt 0:00:02] aiming for Rh8+.} b6 {[%emt 0:04:56]} 36. Ne3 {[%emt 0:01:12]} Kb7 {[%emt 0:02:24]} (36... f4 $1 $11 37. Nexd5 f3) 37. Nfxd5 $16 {[%emt 0:00:52] White has more active pieces.} Nxd5 {[%emt 0:01:13]} 38. Nxd5 {[%emt 0:00:01][%mdl 4096] Endgame. KRN-KRN} Nd8 {[%emt 0:00:28]} 39. Rf6 {[%emt 0:00:19]} Rg5 {[%emt 0:00:32]} 40. Ne7 {[%emt 0:00:15]} Rg3 {[%emt 0:00:34]} 41. Kc2 {[%emt 0:00:18]} (41. Rxf5 Rxc3+ 42. Kb2 Re3 $14) 41... Rg2+ {[%emt 0:00:12]} 42. Kd3 {[%emt 0:01:10]} b5 {[%emt 0:00:40]} (42... Rg3+ {is a better defense.} 43. Kc4 b5+ 44. axb5 axb5+ 45. Kb4 (45. Kxb5 Rxc3 46. Nxf5 Rxb3+ 47. Kc4 Ra3 $11) 45... Re3 46. Nxf5 (46. Kxb5 Rxc3 47. Kb4 Rc1 $16) (46. Nd5 Rf3 $18) 46... Rd3) 43. axb5 {[%emt 0:00:18]} axb5 {[%emt 0:00:01]} (43... Rg3+ $142 44. Kd2 axb5 45. Nxf5 (45. Rxf5 b4 $16) 45... Rh3) 44. Nxf5 $18 {[%emt 0:00:14]} Rg1 {[%emt 0:01:05]} 45. b4 {[%emt 0:01:43]} Kc8 {[%emt 0:00:11]} 46. Nh6 {[%emt 0:00:10]} Rg7 $2 {[%emt 0:00:20]} (46... Rg3+ 47. Kd2 Rg7) 47. d5 {[%emt 0:00:34]} Kd7 {[%emt 0:00:59] [#]} 48. Nxf7 $1 {[%emt 0:00:38][%mdl 512] Weighted Error Value: White=0.04 (flawless) /Black=0.23 (precise) .  Mistake:       	---       	Black=4      Inaccurate:     	White=1     	Black=2      OK:         	White=21    	Black=15     Best:        	White=1     	---        Strong:       	---       	Black=1} 1-0

[Event "EYCC O18-ch 2024"]
[Site "Prague"]
[Date "2024.08.29"]
[Round "7.3"]
[White "Backiel, Hubert"]
[Black "Zlatkov, Anton"]
[Result "1/2-1/2"]
[ECO "A21"]
[WhiteElo "2216"]
[BlackElo "2297"]
[Annotator "RC"]
[PlyCount "70"]
[EventDate "2024.08.19"]
[EventType "swiss"]
[EventCountry "CZE"]
[SourceTitle "playchess.com"]
[Source "ChessBase"]
[SourceQuality "1"]
[TimeControl "5400+30"]

1. c4 {[%emt 0:02:27]} e5 {[%emt 0:01:28]} 2. Nc3 {[%emt 0:00:05]} Bb4 {[%emt 0:00:29]} 3. Nd5 {[%emt 0:00:04]} Be7 {[%emt 0:01:32]} 4. d4 {[%emt 0:00:26]} d6 {[%emt 0:00:21]} 5. e4 {[%emt 0:00:17]} c6 {[%emt 0:00:49]} 6. Nxe7 {[%emt 0:03:01]} Qxe7 {[%emt 0:01:40]} 7. Be3 {[%emt 0:12:02]} Nf6 {[%emt 0:08:41]} 8. f3 {[%emt 0:01:03]} O-O {[%emt 0:01:40]} 9. d5 {[%emt 0:02:38]} cxd5 {[%emt 0:06:52]} 10. cxd5 {[%emt 0:01:03]} Nh5 {[%emt 0:01:16]} 11. g4 {[%emt 0:03:10]} Nf4 {[%emt 0:03:38]} 12. Ne2 {[%emt 0:01:46]} Na6 {[%emt 0:10:26]} 13. Qd2 {[%emt 0:08:21]} Bd7 {[%emt 0:13:05]} 14. O-O-O {[%emt 0:12:23]} Nc5 {[%emt 0:11:36]} 15. Nxf4 {[%emt 0:08:31]} exf4 {[%emt 0:00:18]} 16. Bxc5 {[%emt 0:00:37]} Rac8 {[%emt 0:00:16]} 17. Kb1 {[%emt 0:00:47]} Rxc5 {[%emt 0:01:13]} 18. Qxf4 {[%emt 0:00:05]} f6 {[%emt 0:02:04]} 19. Be2 {[%emt 0:14:18]} g5 {[%emt 0:06:41]} 20. Qg3 {[%emt 0:03:47]} Qe5 {[%emt 0:02:25]} 21. Qxe5 {[%emt 0:00:38]} fxe5 {[%emt 0:00:03]} 22. h4 {[%emt 0:00:35]} gxh4 {[%emt 0:00:04]} 23. Rxh4 {[%emt 0:00:27]} Be8 {[%emt 0:01:06]} 24. Rc1 {[%emt 0:03:09]} b6 {[%emt 0:00:46]} 25. Rhh1 {[%emt 0:02:10]} a5 {[%emt 0:01:57]} 26. a3 {[%emt 0:03:18]} a4 {[%emt 0:02:28]} 27. Rc3 {[%emt 0:01:55]} Kg7 {[%emt 0:01:15]} 28. Kc2 {[%emt 0:00:16]} Rf7 {[%emt 0:05:18]} 29. Kd2 {[%emt 0:01:05]} Kg6 {[%emt 0:01:44]} 30. Ke3 {[%emt 0:03:10]} Rfc7 {[%emt 0:00:49]} 31. Rhc1 {[%emt 0:01:33]} Kg5 {[%emt 0:00:34]} 32. Ba6 {[%emt 0:02:38]} Bd7 {[%emt 0:04:35]} 33. Be2 {[%emt 0:00:56]} Be8 {[%emt 0:00:09]} 34. Bd1 {[%emt 0:01:41]} Ra7 {[%emt 0:02:28]} 35. Be2 Rac7 1/2-1/2

[Event "EYCC O18-ch 2024"]
[Site "Prague"]
[Date "2024.08.29"]
[Round "7.4"]
[White "Malek, Jan"]
[Black "Soderstrom, Adrian"]
[Result "1-0"]
[ECO "D86"]
[WhiteElo "2482"]
[BlackElo "2318"]
[Annotator "RC"]
[PlyCount "85"]
[EventDate "2024.08.19"]
[EventType "swiss"]
[EventCountry "CZE"]
[SourceTitle "playchess.com"]
[Source "ChessBase"]
[SourceQuality "1"]
[TimeControl "5400+30"]

1. d4 {[%emt 0:00:30]} Nf6 {[%emt 0:00:35]} 2. c4 {[%emt 0:00:00]} g6 {[%emt 0:00:17]} 3. Nc3 {[%emt 0:00:00]} d5 {[%emt 0:00:09]} 4. cxd5 {[%emt 0:00:00]} Nxd5 {[%emt 0:00:07]} 5. e4 {[%emt 0:00:00]} Nxc3 {[%emt 0:00:06]} 6. bxc3 {[%emt 0:00:00]} Bg7 {[%emt 0:00:08]} 7. Bc4 {[%emt 0:00:03]} c5 {[%emt 0:00:10]} 8. Ne2 {[%emt 0:00:07]} O-O {[%emt 0:00:24]} 9. O-O {[%emt 0:00:07]} Nc6 {[%emt 0:00:10]} 10. Be3 {[%emt 0:00:06]} Bg4 {[%emt 0:00:58]} 11. f3 {[%emt 0:00:06]} Bd7 {[%emt 0:00:21]} 12. Rb1 {[%emt 0:00:48]} cxd4 {[%emt 0:02:08]} 13. cxd4 {[%emt 0:00:07]} a6 {[%emt 0:00:08]} 14. h4 {[%emt 0:10:44]} h5 {[%emt 0:00:08]} 15. Rf2 {[%emt 0:01:49]} Na5 {[%emt 0:10:13]} 16. Bd3 {[%emt 0:00:59]} b5 {[%emt 0:05:56]} 17. Rc1 {[%emt 0:03:46]} Qb6 {[%emt 0:14:11]} 18. Qd2 {[%emt 0:06:59]} Rfc8 {[%emt 0:00:46]} 19. d5 {[%emt 0:06:12]} Qd8 {[%emt 0:00:11]} 20. Rff1 {[%emt 0:04:53]} Nc4 {[%emt 0:28:03]} 21. Bxc4 {[%emt 0:00:10]} bxc4 {[%emt 0:00:18]} 22. Bd4 {[%emt 0:09:02]} Bxd4+ {[%emt 0:07:44]} 23. Qxd4 {[%emt 0:02:05]} Qa5 {[%emt 0:01:27]} 24. Nc3 {[%emt 0:03:28]} Qc5 {[%emt 0:06:54]} 25. Qxc5 {[%emt 0:10:21]} Rxc5 {[%emt 0:00:02]} 26. f4 {[%emt 0:00:10]} Rb8 {[%emt 0:09:06]} 27. Rb1 {[%emt 0:00:12]} Rcc8 {[%emt 0:00:18]} 28. Kf2 {[%emt 0:01:07]} e6 {[%emt 0:01:46]} 29. d6 {[%emt 0:01:43]} Kf8 {[%emt 0:05:31]} 30. Ke3 {[%emt 0:00:17]} Bc6 {[%emt 0:00:37]} 31. g3 {[%emt 0:01:21]} Ke8 {[%emt 0:02:01]} 32. Rxb8 {[%emt 0:01:05]} Rxb8 {[%emt 0:00:02]} 33. Rb1 {[%emt 0:00:10]} Rd8 {[%emt 0:04:08]} 34. e5 {[%emt 0:00:17]} f6 {[%emt 0:00:24]} 35. Rb6 {[%emt 0:00:52]} Kd7 {[%emt 0:00:03]} 36. Rxa6 {[%emt 0:00:18]} fxe5 {[%emt 0:00:08]} 37. fxe5 {[%emt 0:00:03]} Rf8 {[%emt 0:01:12]} 38. Ra7+ {[%emt 0:00:18]} Kd8 {[%emt 0:00:09]} 39. Kd4 {[%emt 0:00:14]} Rf3 {[%emt 0:01:03]} 40. Kc5 {[%emt 0:00:35]} Bd7 {[%emt 0:00:59]} 41. Ra8+ {[%emt 0:00:08]} Bc8 {[%emt 0:00:02]} 42. Na4 {[%emt 0:00:22]} Ra3 {[%emt 0:01:13]} 43. d7 {[%emt 0:00:11]} 1-0

[Event "EYCC O18-ch 2024"]
[Site "Prague"]
[Date "2024.08.29"]
[Round "7.4"]
[White "Hercegovac, Neven"]
[Black "Hak, David"]
[Result "0-1"]
[ECO "B36"]
[WhiteElo "2278"]
[BlackElo "2239"]
[Annotator "RC"]
[PlyCount "78"]
[EventDate "2024.08.19"]
[EventType "swiss"]
[EventCountry "CZE"]
[SourceTitle "playchess.com"]
[Source "ChessBase"]
[SourceQuality "1"]
[TimeControl "5400+30"]

1. e4 {[%emt 0:00:03]} c5 {[%emt 0:00:03]} 2. Nf3 {[%emt 0:00:04]} Nc6 {[%emt 0:00:04]} 3. d4 {[%emt 0:00:22]} cxd4 {[%emt 0:00:06]} 4. Nxd4 {[%emt 0:00:05]} g6 {[%emt 0:00:08]} 5. c4 {[%emt 0:00:10]} Nf6 {[%emt 0:00:13]} 6. Nc3 {[%emt 0:00:05]} d6 {[%emt 0:00:04]} 7. Be2 {[%emt 0:00:11]} Nxd4 {[%emt 0:00:08]} 8. Qxd4 {[%emt 0:00:06]} Bg7 {[%emt 0:00:06]} 9. O-O {[%emt 0:00:14]} O-O {[%emt 0:00:28]} 10. Qd3 {[%emt 0:00:11]} Nd7 {[%emt 0:07:11]} 11. Be3 {[%emt 0:03:06]} Nc5 {[%emt 0:00:06]} 12. Qc2 {[%emt 0:00:46]} Bd7 {[%emt 0:07:15]} 13. Rad1 {[%emt 0:08:49]} Bxc3 {[%emt 0:07:55]} 14. Qxc3 {[%emt 0:04:16]} Nxe4 {[%emt 0:00:24]} 15. Qd4 {[%emt 0:08:54]} f5 {[%emt 0:08:32]} 16. Qd5+ {[%emt 0:05:56]} Rf7 {[%emt 0:28:59]} 17. Qxb7 {[%emt 0:02:12]} Rb8 {[%emt 0:07:06]} 18. Qxa7 {[%emt 0:01:24]} Rxb2 {[%emt 0:10:22]} 19. Bf3 {[%emt 0:00:51]} Nc3 {[%emt 0:01:18]} 20. Rd2 {[%emt 0:02:21]} Rb8 {[%emt 0:04:33]} 21. Qd4 {[%emt 0:03:49]} Qa5 {[%emt 0:00:47]} 22. Rc1 {[%emt 0:05:53]} Na4 {[%emt 0:02:43]} 23. h4 {[%emt 0:06:57]} Nc5 {[%emt 0:01:57]} 24. Re2 {[%emt 0:04:31]} Qc7 {[%emt 0:02:24]} 25. Bd5 {[%emt 0:03:47]} e6 {[%emt 0:00:11]} 26. Bd2 {[%emt 0:00:36]} h5 {[%emt 0:04:29]} 27. Bc3 {[%emt 0:03:35]} Kh7 {[%emt 0:00:10]} 28. Rce1 {[%emt 0:01:10]} Rbf8 {[%emt 0:02:32]} 29. Bf3 {[%emt 0:02:34]} e5 {[%emt 0:00:14]} 30. Qd2 {[%emt 0:01:31]} e4 {[%emt 0:01:43]} 31. Bxh5 {[%emt 0:00:42]} f4 {[%emt 0:00:13]} 32. Bf3 {[%emt 0:04:39]} Bc6 {[%emt 0:03:25]} 33. Bg4 {[%emt 0:03:49]} Qe7 {[%emt 0:00:07]} 34. g3 {[%emt 0:01:14]} e3 {[%emt 0:00:12]} 35. Qd4 {[%emt 0:00:48]} Ne4 {[%emt 0:00:01]} 36. f3 {[%emt 0:02:28]} fxg3 {[%emt 0:01:45]} 37. fxe4 {[%emt 0:01:33]} Qxh4 {[%emt 0:00:09]} 38. Bf3 {[%emt 0:00:49]} g5 {[%emt 0:00:22]} 39. Bh1 {[%emt 0:01:09]} Rf1+ {[%emt 0:00:22]} 0-1

[Event "EYCC O18-ch 2024"]
[Site "Prague"]
[Date "2024.08.29"]
[Round "7.5"]
[White "Rozen, Eytan"]
[Black "Piliposyan, Robert"]
[Result "1/2-1/2"]
[ECO "A14"]
[WhiteElo "2478"]
[BlackElo "2376"]
[Annotator "TA"]
[PlyCount "214"]
[EventDate "2024.08.19"]
[EventType "swiss"]
[EventCountry "CZE"]
[SourceTitle "playchess.com"]
[Source "ChessBase"]
[SourceQuality "1"]
[TimeControl "5400+30"]

{[%evp 13,214,9,28,12,36,20,29,15,14,19,14,0,0,14,25,30,38,26,14,39,20,23,16,18,22,29,35,0,0,0,0,0,0,0,5,7,10,4,29,47,70,60,81,85,84,83,89,95,97,49,49,49,49,49,49,49,49,49,75,49,49,49,49,49,56,56,85,29,29,29,29,29,29,8,8,8,8,8,29,29,29,29,29,29,29,29,29,29,29,29,29,29,29,29,37,8,8,8,8,8,8,8,8,8,8,8,8,8,8,8,8,8,8,8,8,8,8,0,8,8,8,8,8,8,8,8,43,43,43,43,43,0,43,28,28,8,8,8,8,8,8,8,8,8,8,8,8,8,8,8,8,8,8,8,8,8,8,8,8,8,8,8,8,8,8,8,8,8,8,8,8,8,8,8,8,8,8,8,8,8,8,8,23,8,23,0,0,0,0,0,8,0,0,0,0,0,0,0,0,0,0,0,0]} 1. c4 {[%emt 0:00:04]} e6 {[%emt 0:00:22]} 2. g3 {[%emt 0:00:54]} d5 {[%emt 0:00:11]} 3. Bg2 {[%emt 0:00:10]} Nf6 {[%emt 0:02:05]} 4. Nf3 {[%emt 0:00:15]} Be7 {[%emt 0:01:13]} 5. O-O {[%emt 0:00:59]} O-O {[%emt 0:00:30]} 6. d4 {[%emt 0:01:47]} dxc4 {[%emt 0:01:14]} 7. Qc2 {[%emt 0:00:34]} b5 {[%emt 0:00:09]} 8. a4 {[%emt 0:00:05]} Bb7 {[%emt 0:00:03]} 9. axb5 {[%emt 0:00:08]} a6 {[%emt 0:00:05]} 10. bxa6 {[%emt 0:00:20] White has an edge.} (10. Qxc4 $2 {too greedy.} axb5 11. Qxb5 Bc6 (11... Rxa1 $2 12. Qxb7 Rxb1 13. Qa8 $19) 12. Rxa8 Bxb5 $19) 10... Nxa6 {[%emt 0:00:06][%cal Bb8a6,Ba6b4,Bb4a2][%mdl 32]} 11. Qxc4 {[%emt 0:00:45]} Bd5 {[%emt 0:00:11]} 12. Qd3 {[%emt 0:06:18]} Nb4 {[%emt 0:02:54][%csl LRa1,LRd3]} 13. Rxa8 {[%emt 0:00:05]} Qxa8 {[%emt 0:00:05]} 14. Qd1 {[%emt 0:01:34]} Na2 {[%emt 0:12:57]} 15. Nc3 {[%emt 0:05:55]} Nxc3 {[%emt 0:12:14]} 16. bxc3 {[%emt 0:00:02]} h6 {[%emt 0:01:26]} 17. Bf4 {[%emt 0:04:01]} c5 {[%emt 0:01:05]} 18. Qa1 {[%emt 0:05:04]} cxd4 {[%emt 0:09:45]} 19. cxd4 {[%emt 0:01:03]} Ne4 {[%emt 0:17:52]} 20. Qb2 {[%emt 0:06:36]} Ba3 {[%emt 0:04:43]} 21. Qb5 {[%emt 0:04:16] Strongly threatening Ra1.} g5 {[%emt 0:06:56]} (21... Nc3 $5 22. Qd3 $8 Bb4 $11) 22. Bc7 {[%emt 0:19:39]} Nc3 {[%emt 0:09:48]} 23. Qd3 {[%emt 0:00:08]} Bb4 {[%emt 0:00:19] White must now prevent ...Rc8.} 24. Ne1 {[%emt 0:05:52]} Rc8 {[%emt 0:03:26]} 25. Bxd5 {[%emt 0:01:13]} Nxd5 {[%emt 0:00:05]} 26. Be5 {[%emt 0:00:14]} Rc1 {[%emt 0:03:20]} 27. Nf3 {[%emt 0:06:21]} Rxf1+ {[%emt 0:01:15]} 28. Kxf1 {[%emt 0:00:01]} g4 {[%emt 0:00:13] [#]} 29. Ng1 {[%emt 0:01:23]} Qc6 {[%emt 0:02:40]} 30. h3 {[%emt 0:03:11]} h5 {[%emt 0:02:23]} 31. hxg4 {[%emt 0:00:14]} (31. e4 $16 Nc3 32. d5) 31... hxg4 $14 {[%emt 0:00:04]} 32. e4 {[%emt 0:01:51]} Nc3 {[%emt 0:03:45] [#]} 33. d5 $1 {[%emt 0:01:18]} exd5 {[%emt 0:01:43]} 34. Bxc3 {[%emt 0:00:20]} Qxc3 {[%emt 0:00:04]} 35. Qxd5 {[%emt 0:00:56][%mdl 4096] Endgame. KQB-KQN} Qf6 {[%emt 0:00:49]} 36. Qd7 {[%emt 0:05:00]} Qe6 {[%emt 0:00:48]} 37. Qd4 {[%emt 0:05:58]} Qd6 {[%emt 0:00:20]} 38. Qc4 {[%emt 0:00:49]} Qc5 {[%emt 0:00:27]} 39. Qd3 {[%emt 0:01:17]} Qd6 {[%emt 0:00:11]} 40. Qe3 {[%emt 0:02:04]} (40. Qe2 $16) 40... Qd2 $11 {[%emt 0:01:14]} 41. Qxd2 {[%emt 0:01:09]} Bxd2 {[%emt 0:00:02] KB-KN} 42. Ne2 {[%emt 0:00:30]} Kg7 {[%emt 0:00:18]} 43. Nd4 {[%emt 0:00:07]} Kf6 {[%emt 0:00:29]} 44. Ke2 {[%emt 0:00:07]} Bc1 {[%emt 0:01:01]} 45. Nf5 {[%emt 0:02:45]} Kg5 {[%emt 0:00:21]} 46. Nd6 {[%emt 0:01:04]} Kf6 {[%emt 0:00:40]} 47. Nc4 {[%emt 0:00:22]} Bh6 {[%emt 0:00:34]} 48. Kd3 {[%emt 0:00:58]} Bf8 {[%emt 0:00:14]} 49. Kd4 {[%emt 0:00:12] aiming for Ne5.} Kg5 {[%emt 0:00:44]} 50. Kd5 {[%emt 0:03:14]} Bb4 {[%emt 0:00:58]} 51. Ne5 {[%emt 0:00:06]} f6 {[%emt 0:00:24]} 52. Nd3 {[%emt 0:00:06]} Bc3 {[%emt 0:00:15]} 53. Kc4 {[%emt 0:02:08]} Ba5 {[%emt 0:00:08]} 54. Kd4 {[%emt 0:00:20]} Bb6+ {[%emt 0:00:26]} 55. Kd5 {[%emt 0:00:09]} Ba7 {[%emt 0:00:20]} 56. Nc5 {[%emt 0:01:44]} Kg6 {[%emt 0:00:41]} 57. Kd6 {[%emt 0:00:44]} Bb6 {[%emt 0:00:25]} 58. Nd3 {[%emt 0:00:21]} Kg5 {[%emt 0:00:20]} 59. Ke6 {[%emt 0:00:47]} Ba7 {[%emt 0:00:30]} 60. Kf7 {[%emt 0:00:25]} Bd4 {[%emt 0:00:09]} 61. Kf8 {[%emt 0:00:35]} Ba7 {[%emt 0:00:39]} 62. Kg7 {[%emt 0:00:41]} Bd4 {[%emt 0:00:34]} 63. Kf7 {[%emt 0:01:02]} Ba7 {[%emt 0:00:12]} 64. Ke6 {[%emt 0:00:13]} Bd4 {[%emt 0:00:23]} 65. Kd5 {[%emt 0:00:04]} Ba7 {[%emt 0:00:12]} 66. Kc4 {[%emt 0:00:02]} Bb6 {[%emt 0:00:22]} 67. Kc3 {[%emt 0:00:15]} Ba7 {[%emt 0:00:22]} 68. Kd2 {[%emt 0:00:30]} Bd4 {[%emt 0:00:25]} 69. Ke2 {[%emt 0:00:05]} Bb6 {[%emt 0:00:22]} 70. Nf4 {[%emt 0:00:22]} Ba7 {[%emt 0:00:28]} 71. Nd5 {[%emt 0:00:20]} Bd4 {[%emt 0:00:31]} 72. Nf4 {[%emt 0:00:36] White threatens Ne6+ and mate.} Bb6 {[%emt 0:00:29]} (72... Ba7 $5 {[%cal Rf6f5]}) 73. Ne6+ {[%emt 0:00:53]} Kg6 {[%emt 0:00:45]} 74. f4 {[%emt 0:00:11]} gxf3+ {[%emt 0:00:05]} 75. Kxf3 {[%emt 0:00:06]} Ba7 {[%emt 0:00:59]} 76. Kg4 {[%emt 0:00:22]} Bf2 {[%emt 0:00:36]} 77. Nf4+ {[%emt 0:00:08]} Kf7 {[%emt 0:00:12]} 78. Nd3 {[%emt 0:00:03]} Bd4 {[%emt 0:00:25]} 79. Kf5 {[%emt 0:00:02]} Bc3 {[%emt 0:00:25]} 80. Nc5 {[%emt 0:00:25]} Be5 {[%emt 0:00:15]} 81. g4 {[%emt 0:00:06]} Bd4 {[%emt 0:00:18]} 82. Nb7 {[%emt 0:00:15]} Ba1 {[%emt 0:00:42]} 83. Na5 {[%emt 0:01:03]} Bc3 {[%emt 0:00:12]} 84. Nc6 {[%emt 0:00:10]} Bb2 {[%emt 0:00:18]} 85. Nb4 {[%emt 0:00:24]} Bc3 {[%emt 0:00:11]} 86. Nd3 {[%emt 0:00:15]} Bd4 {[%emt 0:00:10]} 87. Ne1 {[%emt 0:01:05]} Bc3 {[%emt 0:00:16]} 88. Nf3 {[%emt 0:00:02]} Ba1 {[%emt 0:00:16]} 89. Kf4 {[%emt 0:00:16]} Bb2 {[%emt 0:00:13]} 90. Ke3 {[%emt 0:00:02]} Ke6 {[%emt 0:00:41]} 91. Kd3 {[%emt 0:00:02]} Kf7 {[%emt 0:00:34]} 92. Kc2 {[%emt 0:00:11]} Ba3 {[%emt 0:00:14]} 93. Kb3 {[%emt 0:00:01]} Bc1 {[%emt 0:00:08]} 94. Kc4 {[%emt 0:00:13]} Ke6 {[%emt 0:00:20]} 95. Kc5 {[%emt 0:00:06]} Ba3+ {[%emt 0:00:26]} 96. Kc6 {[%emt 0:00:02]} Bb2 {[%emt 0:00:19]} 97. Kc7 {[%emt 0:00:08]} Ke7 {[%emt 0:00:15]} 98. Kc8 {[%emt 0:00:06]} Bc3 {[%emt 0:00:07]} 99. Nh4 {[%emt 0:00:22]} Ke6 {[%emt 0:00:24] The position is equal.} 100. Ng6 {[%emt 0:00:13]} Ba5 {[%emt 0:00:17]} 101. Kb7 {[%emt 0:00:13]} Bd2 {[%emt 0:00:22]} 102. Kc6 {[%emt 0:00:07]} Bg5 {[%emt 0:00:26]} 103. Nf8+ {[%emt 0:00:46]} Ke5 {[%emt 0:00:03]} 104. Kd7 {[%emt 0:00:29]} Kxe4 {[%emt 0:00:13]} 105. Ke6 {[%emt 0:00:05]} Kf4 {[%emt 0:00:03]} 106. Nd7 {[%emt 0:00:06]} Kxg4 {[%emt 0:00:03]} 107. Nxf6+ {[%emt 0:00:10]} Bxf6 {[%emt 0:00:33] Weighted Error Value: White=0.06 (flawless) /Black=0.05 (flawless) .  Mistake:       	White=2     	---        Inaccurate:     	White=4     	Black=4      OK:         	White=39    	Black=54     Best:        	White=2     	Black=2      Brilliant:      	White=1     	---} 1/2-1/2

[Event "EYCC O18-ch 2024"]
[Site "Prague"]
[Date "2024.08.29"]
[Round "7.5"]
[White "Kocsmar, Akos"]
[Black "Bokhnak, Timofey"]
[Result "1/2-1/2"]
[ECO "D45"]
[WhiteElo "2187"]
[BlackElo "2273"]
[Annotator "RC"]
[PlyCount "88"]
[EventDate "2024.08.19"]
[EventType "swiss"]
[EventCountry "CZE"]
[SourceTitle "playchess.com"]
[Source "ChessBase"]
[SourceQuality "1"]
[TimeControl "5400+30"]

1. d4 {[%emt 0:00:02]} Nf6 {[%emt 0:00:07]} 2. c4 {[%emt 0:00:06]} e6 {[%emt 0:00:04]} 3. Nf3 {[%emt 0:00:06]} d5 {[%emt 0:00:04]} 4. Nc3 {[%emt 0:00:12]} c6 {[%emt 0:00:41]} 5. e3 {[%emt 0:00:10]} Nbd7 {[%emt 0:00:33]} 6. Qc2 {[%emt 0:00:17]} Bd6 {[%emt 0:00:26]} 7. Bd3 {[%emt 0:00:20]} O-O {[%emt 0:02:12]} 8. O-O {[%emt 0:00:16]} dxc4 {[%emt 0:01:41]} 9. Bxc4 {[%emt 0:00:10]} b5 {[%emt 0:00:03]} 10. Be2 {[%emt 0:04:10]} Bb7 {[%emt 0:00:49]} 11. e4 {[%emt 0:04:16]} e5 {[%emt 0:00:06]} 12. dxe5 {[%emt 0:10:17]} Nxe5 {[%emt 0:00:07]} 13. Nh4 {[%emt 0:00:26]} g6 {[%emt 0:01:53]} 14. f4 {[%emt 0:05:28]} Bc5+ {[%emt 0:00:03]} 15. Kh1 {[%emt 0:00:09]} Neg4 {[%emt 0:00:03]} 16. g3 {[%emt 0:02:42]} Ne3 {[%emt 0:17:44]} 17. Bxe3 {[%emt 0:01:44]} Bxe3 {[%emt 0:00:02]} 18. Bf3 {[%emt 0:13:39]} Qb6 {[%emt 0:01:57]} 19. e5 {[%emt 0:08:55]} Nd5 {[%emt 0:04:20]} 20. Ng2 {[%emt 0:11:48]} Bd4 {[%emt 0:02:02]} 21. Nxd5 {[%emt 0:06:31]} cxd5 {[%emt 0:00:38]} 22. Rad1 {[%emt 0:00:45]} Rad8 {[%emt 0:00:33]} 23. b4 {[%emt 0:01:58]} Rc8 {[%emt 0:03:26]} 24. Qd3 {[%emt 0:06:35]} Rc4 {[%emt 0:00:19]} 25. a3 {[%emt 0:00:25]} Rd8 {[%emt 0:02:50]} 26. Rfe1 {[%emt 0:02:17]} Qc7 {[%emt 0:13:37]} 27. e6 {[%emt 0:02:09]} fxe6 {[%emt 0:02:54]} 28. Rxe6 {[%emt 0:01:53]} Bc8 {[%emt 0:08:52]} 29. Ree1 {[%emt 0:03:23]} Qf7 {[%emt 0:08:23]} 30. Ne3 {[%emt 0:02:46]} Bxe3 {[%emt 0:00:07]} 31. Qxe3 {[%emt 0:00:10]} d4 {[%emt 0:01:44]} 32. Qe7 {[%emt 0:00:04]} Rd7 {[%emt 0:00:40]} 33. Qe8+ {[%emt 0:02:28]} Kg7 {[%emt 0:01:23]} 34. Qe5+ {[%emt 0:00:16]} Qf6 {[%emt 0:00:13]} 35. Qxb5 {[%emt 0:00:09]} Rc3 {[%emt 0:00:57]} 36. Kg2 {[%emt 0:03:50]} d3 {[%emt 0:02:12]} 37. Re8 {[%emt 0:00:33]} Rc2+ {[%emt 0:01:14]} 38. Kf1 {[%emt 0:00:38]} Qd4 {[%emt 0:04:57]} 39. Qe5+ {[%emt 0:00:21]} Qxe5 {[%emt 0:00:07]} 40. Rxe5 {[%emt 0:00:25]} Rxh2 {[%emt 0:00:27]} 41. Bg2 {[%emt 0:01:39]} d2 {[%emt 0:04:07]} 42. Kg1 {[%emt 0:00:32]} Rh5 {[%emt 0:00:06]} 43. Rxh5 {[%emt 0:01:28]} gxh5 {[%emt 0:01:10]} 44. Bf1 {[%emt 0:00:45]} h4 {[%emt 0:05:00]} 1/2-1/2